fUSD/lending_fUSD_20240114
["ID","MTS","AMOUNT","RATE_DAILY","PERIOD"]
[311586372,1705254683231,-7358.68,0.00030958,2]
[311586373,1705254683240,-500.0,0.00030958,2]
[311586374,1705254683249,-1416.84,0.00030958,2]
[311586375,1705254683258,-500.0,0.00030958,2]
[311586376,1705254683268,-500.0,0.00030958,2]
[311586377,1705254683277,-817.18,0.00030958,2]
[311586378,1705254683286,-905.22,0.00030958,2]
[311586379,1705254683295,-500.0,0.00030958,2]
[311586380,1705254683304,-2225.84,0.00030958,2]
[311586381,1705254683313,-1065.28,0.00030958,2]
[311586382,1705254683322,-500.0,0.00030958,2]
[311586383,1705254683331,-1555.59,0.00030958,2]
[311586384,1705254683341,-959.87,0.00030958,2]
[311586385,1705254683350,-500.0,0.00030958,2]
[311586386,1705254683359,-643.05,0.00030958,2]
[311586387,1705254683368,-1807.93,0.00030958,2]
[311586388,1705254683377,-2257.62,0.00030958,2]
[311586389,1705254683386,-500.0,0.00030958,2]
[311586390,1705254683395,-1129.54,0.00030958,2]
[311586391,1705254683404,-517.68262162,0.00030958,2]
[311586392,1705254683413,-959.3,0.00030958,2]
[311586393,1705254683422,-3252.88,0.00030958,2]
[311586394,1705254683431,-502.28,0.00030958,2]
[311586395,1705254683441,-1388.45,0.00030958,2]
[311586396,1705254683450,-500.0,0.00030958,2]
[311586397,1705254683459,-2793.81,0.00030958,2]
[311586398,1705254683468,-557.56086628,0.00030958,2]
[311586399,1705254683478,-1017.91,0.00030958,2]
[311586400,1705254683487,-874.99,0.00030958,2]
[311586401,1705254683497,-500.0,0.00030958,2]
[311586402,1705254683506,-500.0,0.00030958,2]
[311586403,1705254683515,-6280.95,0.00030958,2]
[311586404,1705254683524,-915.83,0.00030958,2]
[311586405,1705254683533,-1952.99,0.00030958,2]
[311586406,1705254683542,-676.52,0.00030958,2]
[311586407,1705254683552,-630.37,0.00030958,2]
[311586408,1705254683562,-3111.79,0.00030958,2]
[311586409,1705254683572,-500.0,0.00030958,2]
[311586410,1705254683581,-2353.93,0.00030958,2]
[311586411,1705254683590,-500.68209091,0.00030958,2]
[311586412,1705254683599,-500.0,0.00030958,2]
[311586413,1705254683608,-500.0,0.00030958,2]
[311586414,1705254683618,-500.0,0.00030958,2]
[311586415,1705254683628,-1027.37,0.00030958,2]
[311586416,1705254683637,-500.0,0.00030958,2]
[311586417,1705254683646,-1411.48,0.00030958,2]
[311586418,1705254683655,-500.0,0.00030958,2]
[311586419,1705254683665,-500.0,0.00030958,2]
[311586420,1705254683674,-688.75,0.00030958,2]
[311586421,1705254683683,-974.58,0.00030958,2]
[311586422,1705254683692,-500.0,0.00030958,2]
[311586423,1705254683701,-2751.81,0.00030958,2]
[311586424,1705254683710,-500.0,0.00030958,2]
[311586425,1705254683719,-500.0,0.00030958,2]
[311586426,1705254683728,-1119.46,0.00030958,2]
[311586427,1705254683737,-500.0,0.00030958,2]
[311586428,1705254683747,-4919.77,0.00030958,2]
[311586429,1705254683756,-678.6,0.00030958,2]
[311586430,1705254683766,-580.53383091,0.00030958,2]
[311586431,1705254683775,-573.17043986,0.00030958,2]
[311586432,1705254683784,-185.92,0.00030958,2]
[311586433,1705254683794,-2030.96,0.00030958,2]
[311586434,1705254683804,-6290.45,0.00030958,2]
[311586435,1705254683813,-500.0,0.00030958,2]
[311586436,1705254683823,-4496.01,0.00030958,2]
[311586437,1705254683833,-747.52,0.00030958,2]
[311586438,1705254683842,-500.0,0.00030958,2]
[311586439,1705254683852,-635.11,0.00030958,2]
[311586440,1705254683861,-2657.56,0.00030958,2]
[311586441,1705254683870,-500.0,0.00030958,2]
[311586442,1705254683880,-1605.99,0.00030958,2]
[311586443,1705254683890,-13923.52,0.00030958,2]
[311586444,1705254683899,-1053.84,0.00030958,2]
[311586445,1705254683908,-500.0,0.00030958,2]
[311586446,1705254683918,-13749.45,0.00030958,2]
[311586447,1705254683927,-1086.88,0.00030958,2]
[311586448,1705254683936,-500.0,0.00030958,2]
[311586449,1705254683947,-500.0,0.00030958,2]
[311586450,1705254683957,-507.02,0.00030958,2]
[311586451,1705254683967,-512.92,0.00030958,2]
[311586452,1705254683976,-500.0,0.00030958,2]
[311586453,1705254684106,-546.97,0.00030958,2]
[311586454,1705254684116,-36935.37,0.00030958,2]
[311586455,1705254684125,-500.0,0.00030958,2]
[311586456,1705254684135,-644.75,0.00030958,2]
[311586457,1705254684145,-541.88,0.00030958,2]
[311586458,1705254684154,-762.58,0.00030958,2]
[311586459,1705254684164,-776.48,0.00030958,2]
[311586460,1705254684173,-5174.76,0.00030958,2]
[311586461,1705254684182,-4603.34,0.00030958,2]
[311586462,1705254684191,-500.0,0.00030958,2]
[311586463,1705254684200,-410.96,0.00030958,2]
[311586464,1705254684209,-1361.41,0.00030958,2]
[311586465,1705254684219,-551.34,0.00030958,2]
[311586466,1705254684228,-18687.6,0.00030958,2]
[311586467,1705254684238,-500.0,0.00030958,2]
[311586468,1705254684247,-500.0,0.00030958,2]
[311586469,1705254684257,-2606.26,0.00030958,2]
[311586470,1705254684266,-1070.66,0.00030958,2]
[311586471,1705254684275,-500.0,0.00030958,2]
[311586472,1705254684284,-538.37,0.00030958,2]
[311586473,1705254684294,-2734.88,0.00030958,2]
[311586474,1705254684303,-4925.51,0.00030958,2]
[311586475,1705254684312,-764.0,0.00030958,2]
[311586476,1705254684321,-500.0,0.00030958,2]
[311586477,1705254684330,-500.0,0.00030958,2]
[311586478,1705254684340,-500.0,0.00030958,2]
[311586479,1705254684350,-500.0,0.00030958,2]
[311586480,1705254684360,-1765.44,0.00030958,2]
[311586481,1705254684369,-3076.14,0.00030958,2]
[311586482,1705254684379,-500.0,0.00030958,2]
[311586483,1705254684388,-512.21195999,0.00030958,2]
[311586484,1705254684398,-1266.12,0.00030958,2]
[311586485,1705254684407,-1792.67,0.00030958,2]
[311586486,1705254684421,-500.0,0.00030958,2]
[311586487,1705254684431,-500.0,0.00030958,2]
[311586488,1705254684440,-3926.07,0.00030958,2]
[311586489,1705254684450,-500.0,0.00030958,2]
[311586490,1705254684460,-1199.33,0.00030958,2]
[311586491,1705254684469,-519.94,0.00030958,2]
[311586492,1705254684479,-1261.09,0.00030958,2]
[311586493,1705254684488,-1000.0,0.00030958,2]
[311586494,1705254684497,-1408.57,0.00030958,2]
[311586495,1705254684507,-3536.73,0.00030958,2]
[311586496,1705254684516,-500.0,0.00030958,2]
[311586497,1705254684526,-12614.91,0.00030958,2]
[311586498,1705254684535,-500.0,0.00030958,2]
[311586499,1705254684544,-500.0,0.00030958,2]
[311586500,1705254684556,-5179.9,0.00030958,2]
[311586501,1705254684566,-2091.45,0.00030958,2]
[311586502,1705254684575,-7274.24,0.00030958,2]
[311586503,1705254684584,-500.0,0.00030958,2]
[311586504,1705254684594,-500.0,0.00030958,2]
[311586505,1705254684603,-500.0,0.00030958,2]
[311586506,1705254684612,-13931.34,0.00030958,2]
[311586507,1705254684622,-500.0,0.00030958,2]
[311586508,1705254684632,-500.0,0.00030958,2]
[311586509,1705254684641,-1104.21,0.00030958,2]
[311586510,1705254684652,-2085.5,0.00030958,2]
[311586511,1705254684661,-1967.26,0.00030958,2]
[311586512,1705254684670,-533.79,0.00030958,2]
[311586513,1705254684680,-500.0,0.00030958,2]
[311586514,1705254684689,-570.34,0.00030958,2]
[311586515,1705254684698,-500.0,0.00030958,2]
[311586516,1705254684708,-500.0,0.00030958,2]
[311586517,1705254684717,-631.88,0.00030958,2]
[311586518,1705254684727,-652.34,0.00030958,2]
[311586519,1705254684737,-9424.33,0.00030958,2]
[311586520,1705254684747,-500.0,0.00030958,2]
[311586521,1705254684757,-682.32,0.00030958,2]
[311586522,1705254684766,-1840.74,0.00030958,2]
[311586523,1705254684776,-4246.44,0.00030958,2]
[311586524,1705254684786,-2261.49,0.00030958,2]
[311586525,1705254684795,-3633.65,0.00030958,2]
[311586526,1705254684805,-500.0,0.00030958,2]
[311586527,1705254684814,-890.95,0.00030958,2]
[311586528,1705254684824,-500.0,0.00030958,2]
[311586529,1705254684834,-541.95,0.00030958,2]
[311586530,1705254684843,-1873.09,0.00030958,2]
[311586531,1705254684853,-500.0,0.00030958,2]
[311586532,1705254684863,-1421.47,0.00030958,2]
[311586533,1705254684872,-500.0,0.00030958,2]
[311586534,1705254684882,-500.0,0.00030958,2]
[311586535,1705254684892,-2379.45,0.00030958,2]
[311586536,1705254684901,-500.0,0.00030958,2]
[311586537,1705254684911,-800.68,0.00030958,2]
[311586538,1705254684921,-500.0,0.00030958,2]
[311586539,1705254684930,-500.0,0.00030958,2]
[311586540,1705254684939,-3777.35,0.00030958,2]
[311586541,1705254684949,-2348.65,0.00030958,2]
[311586542,1705254684959,-500.0,0.00030958,2]
[311586543,1705254684968,-6603.21,0.00030958,2]
[311586544,1705254684978,-1554.42,0.00030958,2]
[311586545,1705254684988,-1924.51,0.00030958,2]
[311586546,1705254684997,-1388.96,0.00030958,2]
[311586547,1705254685007,-1000.0,0.00030958,2]
[311586548,1705254685016,-500.0,0.00030958,2]
[311586549,1705254685026,-869.37,0.00030958,2]
[311586550,1705254685036,-637.72,0.00030958,2]
[311586551,1705254685049,-705.91,0.00030958,2]
[311586552,1705254685060,-1802.01,0.00030958,2]
[311586553,1705254685070,-553.07169401,0.00030958,2]
[311586554,1705254685080,-500.0,0.00030958,2]
[311586555,1705254685090,-1005.76,0.00030958,2]
[311586556,1705254685099,-500.0,0.00030958,2]
[311586557,1705254685109,-1139.58,0.00030958,2]
[311586558,1705254685118,-2440.46,0.00030958,2]
[311586559,1705254685128,-500.0,0.00030958,2]
[311586560,1705254685137,-500.0,0.00030958,2]
[311586561,1705254685147,-729.88,0.00030958,2]
[311586562,1705254685156,-500.0,0.00030958,2]
[311586563,1705254685165,-1109.22,0.00030958,2]
[311586564,1705254685174,-9293.44,0.00030958,2]
[311586565,1705254685184,-743.02,0.00030958,2]
[311586566,1705254685193,-586.01,0.00030958,2]
[311586567,1705254685203,-544.48122024,0.00030958,2]
[311586568,1705254685212,-500.0,0.00030958,2]
[311586569,1705254685222,-500.0,0.00030958,2]
[311586570,1705254685233,-500.0,0.00030958,2]
[311586571,1705254685242,-500.0,0.00030958,2]
[311586572,1705254685252,-1044.54,0.00030958,2]
[311586573,1705254685262,-1926.33,0.00030958,2]
[311586574,1705254685271,-510.1612352,0.00030958,2]
[311586575,1705254685280,-500.0,0.00030958,2]
[311586576,1705254685290,-1139.2,0.00030958,2]
[311586577,1705254685299,-1156.25,0.00030958,2]
[311586578,1705254685308,-1448.68,0.00030958,2]
[311586579,1705254685318,-500.0,0.00030958,2]
[311586580,1705254685327,-500.0,0.00030958,2]
[311586581,1705254685336,-2397.76,0.00030958,2]
[311586582,1705254685346,-1351.67,0.00030958,2]
[311586583,1705254685355,-602.63,0.00030958,2]
[311586584,1705254685364,-1057.68,0.00030958,2]
[311586585,1705254685374,-500.0,0.00030958,2]
[311586586,1705254685383,-500.0,0.00030958,2]
[311586587,1705254685393,-546.22,0.00030958,2]
[311586588,1705254685402,-8256.08,0.00030958,2]
[311586589,1705254685411,-1098.19,0.00030958,2]
[311586590,1705254685420,-500.0,0.00030958,2]
[311586591,1705254685429,-731.42,0.00030958,2]
[311586592,1705254685439,-1277.19,0.00030958,2]
[311586593,1705254685448,-1941.84,0.00030958,2]
[311586594,1705254685458,-3928.23,0.00030958,2]
[311586595,1705254685467,-500.0,0.00030958,2]
[311586596,1705254685476,-702.7,0.00030958,2]
[311586597,1705254685485,-500.0,0.00030958,2]
[311586598,1705254685495,-500.0,0.00030958,2]
[311586599,1705254685504,-796.24,0.00030958,2]
[311586600,1705254685514,-2073.52,0.00030958,2]
[311586601,1705254685524,-581.79,0.00030958,2]
[311586602,1705254685534,-1945.66,0.00030958,2]
[311586603,1705254685543,-500.0,0.00030958,2]
[311586604,1705254685553,-2019.56,0.00030958,2]
[311586605,1705254685563,-500.0,0.00030958,2]
[311586606,1705254685573,-500.0,0.00030958,2]
[311586607,1705254685582,-1162.31,0.00030958,2]
[311586608,1705254685593,-744.39,0.00030958,2]
[311586609,1705254685603,-500.0,0.00030958,2]
[311586610,1705254685612,-1628.56,0.00030958,2]
[311586611,1705254685622,-549.81365535,0.00030958,2]
[311586612,1705254685632,-1757.85,0.00030958,2]
[311586613,1705254685643,-500.0,0.00030958,2]
[311586614,1705254685652,-621.65,0.00030958,2]
[311586615,1705254685662,-24669.86,0.00030958,2]
[311586616,1705254685671,-500.0,0.00030958,2]
[311586617,1705254685681,-500.0,0.00030958,2]
[311586618,1705254685691,-790.77,0.00030958,2]
[311586619,1705254685702,-1131.11,0.00030958,2]
[311586620,1705254685711,-500.0,0.00030958,2]
[311586621,1705254685721,-500.0,0.00030958,2]
[311586622,1705254685730,-367.70092768,0.00030958,2]
[311586623,1705254685741,-2627.87,0.00030958,2]
[311586624,1705254685750,-202.91825186,0.00030958,2]
[311586625,1705254685759,-500.0,0.00030958,2]
[311586626,1705254685769,-2431.74,0.00030958,2]
[311586627,1705254685779,-500.0,0.00030958,2]
[311586628,1705254685789,-502.34339911,0.00030958,2]
[311586629,1705254685799,-619.23,0.00030958,2]
[311586630,1705254685808,-1398.37,0.00030958,2]
[311586631,1705254685818,-500.0,0.00030958,2]
[311586632,1705254685829,-500.0,0.00030958,2]
[311586633,1705254685838,-500.0,0.00030958,2]
[311586634,1705254685850,-635.27,0.00030958,2]
[311586635,1705254685860,-500.0,0.00030958,2]
[311586636,1705254685870,-2128.54,0.00030958,2]
[311586637,1705254685880,-546.4,0.00030958,2]
[311586638,1705254685890,-500.0,0.00030958,2]
[311586639,1705254685900,-500.0,0.00030958,2]
[311586640,1705254685909,-500.0,0.00030958,2]
[311586641,1705254685919,-730.39,0.00030958,2]
[311586642,1705254685929,-500.0,0.00030958,2]
[311586643,1705254685939,-746.79,0.00030958,2]
[311586644,1705254685949,-688.55,0.00030958,2]
[311586645,1705254685959,-1845.78,0.00030958,2]
[311586646,1705254685969,-1353.58,0.00030958,2]
[311586647,1705254685979,-2456.1,0.00030958,2]
[311586648,1705254685989,-1751.67,0.00030958,2]
[311586649,1705254685998,-500.0,0.00030958,2]
[311586650,1705254686008,-958.1,0.00030958,2]
[311586651,1705254686018,-521.57822017,0.00030958,2]
[311586652,1705254686028,-977.67,0.00030958,2]
[311586653,1705254686038,-500.0,0.00030958,2]
[311586654,1705254686053,-1005.3,0.00030958,2]
[311586655,1705254686064,-500.0,0.00030958,2]
[311586656,1705254686074,-1100.07,0.00030958,2]
[311586657,1705254686085,-2038.82,0.00030958,2]
[311586658,1705254686095,-2725.4,0.00030958,2]
[311586659,1705254686105,-645.07,0.00030958,2]
[311586660,1705254686115,-4814.13,0.00030958,2]
[311586661,1705254686124,-500.0,0.00030958,2]
[311586662,1705254686133,-1085.28,0.00030958,2]
[311586663,1705254686143,-500.0,0.00030958,2]
[311586664,1705254686153,-500.0,0.00030958,2]
[311586665,1705254686162,-1023.19,0.00030958,2]
[311586666,1705254686171,-938.38,0.00030958,2]
[311586667,1705254686181,-3050.06,0.00030958,2]
[311586668,1705254686190,-650.45,0.00030958,2]
[311586669,1705254686521,-500.0,0.00030958,2]
[311586670,1705254686531,-1098.42,0.00030958,2]
[311586671,1705254686540,-2866.89,0.00030958,2]
[311586672,1705254686550,-500.0,0.00030958,2]
[311586673,1705254686559,-500.0,0.00030958,2]
[311586674,1705254686568,-500.0,0.00030958,2]
[311586675,1705254686578,-991.95,0.00030958,2]
[311586676,1705254686587,-500.0,0.00030958,2]
[311586677,1705254686596,-5608.33,0.00030958,2]
[311586678,1705254686606,-633.07,0.00030958,2]
[311586679,1705254686616,-500.0,0.00030958,2]
[311586680,1705254686626,-1002.42,0.00030958,2]
[311586681,1705254686636,-500.0,0.00030958,2]
[311586682,1705254686645,-500.0,0.00030958,2]
[311586683,1705254686655,-6080.5,0.00030958,2]
[311586684,1705254686666,-500.0,0.00030958,2]
[311586685,1705254686675,-500.0,0.00030958,2]
[311586686,1705254686684,-1200.16,0.00030958,2]
[311586687,1705254686694,-500.0,0.00030958,2]
[311586688,1705254686703,-4523.2,0.00030958,2]
[311586689,1705254686713,-500.0,0.00030958,2]
[311586690,1705254686722,-1443.19,0.00030958,2]
[311586691,1705254686731,-9121.86,0.00030958,2]
[311586692,1705254686741,-535.76,0.00030958,2]
[311586693,1705254686750,-1491.1,0.00030958,2]
[311586694,1705254686760,-2410.62,0.00030958,2]
[311586695,1705254686769,-500.0,0.00030958,2]
[311586696,1705254686779,-500.0,0.00030958,2]
[311586697,1705254686790,-500.0,0.00030958,2]
[311586698,1705254686801,-582.04080355,0.00030958,2]
[311586699,1705254686814,-5763.39,0.00030958,2]
[311586700,1705254686824,-1168.02,0.00030958,2]
[311586701,1705254686835,-500.0,0.00030958,2]
[311586702,1705254686846,-2824.58,0.00030958,2]
[311586703,1705254686856,-617.19,0.00030958,2]
[311586704,1705254686866,-500.0,0.00030958,2]
[311586705,1705254686876,-1147.57,0.00030958,2]
[311586706,1705254686887,-19867.44,0.00030958,2]
[311586707,1705254686897,-5067.31,0.00030958,2]
[311586708,1705254686906,-1423.93,0.00030958,2]
[311586709,1705254686916,-822.98,0.00030958,2]
[311586710,1705254686927,-1153.35,0.00030958,2]
[311586711,1705254686936,-641.77,0.00030958,2]
[311586712,1705254686945,-3022.19,0.00030958,2]
[311586713,1705254686955,-500.0,0.00030958,2]
[311586714,1705254686964,-612.74,0.00030958,2]
[311586715,1705254686974,-500.0,0.00030958,2]
[311586716,1705254686984,-500.0,0.00030958,2]
[311586717,1705254686994,-835.25,0.00030958,2]
[311586718,1705254687004,-500.0,0.00030958,2]
[311586719,1705254687014,-1550.26,0.00030958,2]
[311586720,1705254687023,-893.14,0.00030958,2]
[311586721,1705254687033,-320.01189,0.00030958,7]
[311586722,1705254687043,-320.01189,0.00030958,7]
[311586723,1705254687054,-232.559274,0.00030958,7]
[311586724,1705254687064,-232.559274,0.00030958,7]
[311586725,1705254687073,-151.0,0.00030958,7]
[311586726,1705254687083,-151.0,0.00030958,7]
[311586727,1705254687092,-159.915185,0.00030958,7]
[311586728,1705254687102,-159.915185,0.00030958,7]
[311586729,1705254687112,-158.76,0.00030958,7]
[311586730,1705254687121,-158.76,0.00030958,7]
[311586731,1705254687131,-225.170273,0.00030958,7]
[311586732,1705254687141,-245.287094,0.00030958,7]
[311586733,1705254687151,-245.287094,0.00030958,7]
[311586734,1705254687160,-386.185175,0.00030958,7]
[311586735,1705254687170,-386.185175,0.00030958,7]
[311586736,1705254687180,-151.0,0.00030958,7]
[311586737,1705254687189,-151.0,0.00030958,7]
[311586738,1705254687198,-431.90555763,0.00030968,2]
[311586739,1705254687208,-156.70530925,0.00030971,5]
[311586740,1705254687217,-153.84,0.00030975,2]
[311586741,1705254687227,-210.19508744,0.00030978,2]
[311586742,1705254687236,-168.39287458,0.00030998,2]
[311586743,1705254687247,-3998.08335814,0.00031,2]
[311586744,1705254687256,-160.29,0.00031005,2]
[311586745,1705254687266,-1000.0,0.00031021,2]
[311586746,1705254687275,-831.08,0.0003106,2]
[311586747,1705254687284,-1000.0,0.00031112,7]
[311586748,1705254687294,-150.0,0.00031125,2]
[311586749,1705254687303,-202.0,0.0003113,2]
[311586750,1705254687313,-179.29,0.00031136,2]
[311586751,1705254687322,-1761.40675176,0.0003121,5]
[311586752,1705254687331,-831.08,0.00031211,2]
[311586753,1705254687341,-160.29,0.00031224,2]
[311586754,1705254687350,-9797.76239264,0.00031229,4]
[311586755,1705254687360,-397.09773994,0.00031229,4]
[311586756,1705254687370,-158.76,0.00031229,7]
[311586757,1705254687379,-158.76,0.00031229,7]
[311586758,1705254687389,-245.287094,0.00031229,7]
[311586759,1705254687399,-245.287094,0.00031229,7]
[311586760,1705254687409,-386.185175,0.00031229,7]
[311586761,1705254687418,-386.185175,0.00031229,7]
[311586762,1705254687428,-151.0,0.00031229,7]
[311586763,1705254687437,-500.0,0.0003123,2]
[311586764,1705254687446,-159.915185,0.00031231,7]
[311586765,1705254687455,-159.915185,0.00031231,7]
[311586766,1705254687464,-72779.47975049,0.00031231,4]
[311586767,1705254687474,-500.0,0.00031231,2]
[311586768,1705254687484,-300.0,0.00031231,2]
[311586769,1705254687493,-500.0,0.00031232,2]
[311586770,1705254687503,-506.63698279,0.00031232,2]
[311586771,1705254687512,-500.0,0.00031232,2]
[311586772,1705254687521,-456.70488485,0.00031232,2]
[311586773,1705254687530,-500.0,0.00031232,2]
[311586774,1705254687539,-500.0,0.00031232,2]
[311586775,1705254687549,-500.0,0.00031232,2]
[311586776,1705254687558,-500.0,0.00031232,2]
[311586777,1705254687568,-500.0,0.00031232,2]
[311586778,1705254687577,-500.0,0.00031232,2]
[311586779,1705254687587,-520.82,0.00031232,2]
[311586780,1705254687596,-500.0,0.00031232,2]
[311586781,1705254687605,-500.0,0.00031232,2]
[311586782,1705254687615,-500.0,0.00031232,2]
[311586783,1705254687625,-500.0,0.00031232,2]
[311586784,1705254687634,-500.0,0.00031232,2]
[311586785,1705254687643,-500.0,0.00031232,2]
[311586786,1705254687653,-432.18131546,0.00031232,2]
[311586787,1705254687662,-653.52,0.00031232,2]
[311586788,1705254687671,-520.83,0.00031232,2]
[311586789,1705254687680,-237.68992222,0.00031232,2]
[311586790,1705254687689,-500.0,0.00031232,2]
[311586791,1705254687698,-499.999999,0.00031232,2]
[311586792,1705254687708,-569.22,0.00031232,2]
[311586793,1705254687717,-500.0,0.00031232,2]
[311586794,1705254687726,-730.18,0.00031232,2]
[311586795,1705254687735,-500.0,0.00031232,2]
[311586796,1705254687744,-500.0,0.00031232,2]
[311586797,1705254687753,-500.0,0.00031232,2]
[311586798,1705254687762,-500.0,0.00031232,2]
[311586799,1705254687772,-500.0,0.00031232,2]
[311586800,1705254687781,-500.0,0.00031232,2]
[311586801,1705254687791,-517.73,0.00031232,2]
[311586802,1705254687800,-500.0,0.00031232,2]
[311586803,1705254687810,-500.0,0.00031232,2]
[311586804,1705254687819,-500.0,0.00031232,2]
[311586805,1705254687828,-506.18220991,0.00031232,2]
[311586806,1705254687838,-500.0,0.00031232,2]
[311586807,1705254687847,-643.63,0.00031232,2]
[311586808,1705254687856,-500.0,0.00031232,2]
[311586809,1705254687866,-609.69,0.00031232,2]
[311586810,1705254687875,-443.3730573,0.00031232,2]
[311586811,1705254687884,-500.0,0.00031232,2]
[311586812,1705254687894,-500.0,0.00031232,2]
[311586813,1705254687903,-500.0,0.00031232,2]
[311586814,1705254687912,-500.0,0.00031232,2]
[311586815,1705254687922,-500.0,0.00031232,2]
[311586816,1705254687931,-500.0,0.00031232,2]
[311586817,1705254687941,-500.0,0.00031232,2]
[311586818,1705254687950,-500.0,0.00031232,2]
[311586819,1705254687959,-500.97,0.00031232,2]
[311586820,1705254687968,-500.0,0.00031232,2]
[311586821,1705254687978,-952.85,0.00031232,2]
[311586822,1705254687987,-500.0,0.00031232,2]
[311586823,1705254687996,-500.0,0.00031232,2]
[311586824,1705254688006,-620.4329636,0.00031232,2]
[311586825,1705254688015,-500.0,0.00031232,2]
[311586826,1705254688024,-500.0,0.00031232,2]
[311586827,1705254688034,-1010.48,0.00031232,2]
[311586828,1705254688044,-500.0,0.00031232,2]
[311586829,1705254688057,-500.0,0.00031232,2]
[311586830,1705254688066,-542.19,0.00031232,2]
[311586831,1705254688076,-500.0,0.00031232,2]
[311586832,1705254688085,-500.0,0.00031232,2]
[311586833,1705254688094,-338.67178555,0.00031232,2]
[311586834,1705254688103,-219.06027575,0.00031232,2]
[311586835,1705254688112,-614.14,0.00031232,2]
[311586836,1705254688121,-500.0,0.00031232,2]
[311586837,1705254688131,-500.0,0.00031232,2]
[311586838,1705254688140,-500.0,0.00031232,2]
[311586839,1705254688149,-538.4709317,0.00031232,2]
[311586840,1705254688158,-833.62,0.00031232,2]
[311586841,1705254688168,-500.0,0.00031232,2]
[311586842,1705254688177,-500.0,0.00031232,2]
[311586843,1705254688187,-500.0,0.00031232,2]
[311586844,1705254688196,-621.16,0.00031232,2]
[311586845,1705254688205,-500.0,0.00031232,2]
[311586846,1705254688214,-500.0,0.00031232,2]
[311586847,1705254688224,-677.45,0.00031232,2]
[311586848,1705254688233,-500.0,0.00031232,2]
[311586849,1705254688243,-519.26,0.00031232,2]
[311586850,1705254688253,-500.0,0.00031232,2]
[311586851,1705254688262,-500.0,0.00031232,2]
[311586852,1705254688272,-500.0,0.00031232,2]
[311586853,1705254688281,-903.38,0.00031232,2]
[311586854,1705254688291,-1028.98,0.00031232,2]
[311586855,1705254688299,-221.48427159,0.00031232,2]
[311586856,1705254688308,-500.0,0.00031232,2]
[311586857,1705254688318,-792.6,0.00031232,2]
[311586858,1705254688327,-500.0,0.00031232,2]
[311586859,1705254688337,-500.0,0.00031232,2]
[311586860,1705254688346,-500.0,0.00031232,2]
[311586861,1705254688356,-629.21,0.00031232,2]
[311586862,1705254688366,-500.0,0.00031232,2]
[311586863,1705254688375,-500.0,0.00031232,2]
[311586864,1705254688385,-500.0,0.00031232,2]
[311586865,1705254688394,-500.0,0.00031232,2]
[311586866,1705254688403,-500.0,0.00031232,2]
[311586867,1705254688413,-500.0,0.00031232,2]
[311586868,1705254688422,-769.34,0.00031232,2]
[311586869,1705254688431,-500.0,0.00031232,2]
[311586870,1705254688440,-500.0,0.00031232,2]
[311586871,1705254688450,-716.68,0.00031232,2]